{"text_format":"1","workbook":"xlsx","n_sheets":11,"sheets":["right_click","home","keyboard_shortcut","keyboard_shortcut(2)","paste special","mouse trick","Sheet 1","Sheet 2","Sheet 3","quick accessbar","VBA"],"not_rendered":{"charts":0,"images":0,"macros":1,"external_links":0,"defined_names":0,"comments":0,"pivot_tables":0},"unopened":[],"bounds":{"document_bytes":16777216,"sheet_cells":100000,"rows_first":2000,"rows_last":500,"rows_between":2000,"halvings":0,"cell_chars":16384,"cell_head_chars":4096},"cells_cut":0,"cells_raw":0,"read":"whole","date_system":"1900"}

{"sheet":"right_click","index":0,"n_rows":9,"n_cols":15,"rows_kept":9,"cut":false,"hidden":false,"merged":[[1,1,1,5],[1,10,1,14]]}
[]
[null," Clear Formula From Excel",null,null,null,null,null,null,null,null,"Try Yourself"]
[]
[null,"Product Name","Pack Size","Unit Price ","Quantity","Price ",null,null,null,null,"Product Name","Pack Size","Unit Price ","Quantity","Price "]
[null,"Banana","p/kg",10.5,2,21,null,null,null,null,"Banana","p/kg",10.5,2,{"$f":"SUMPRODUCT(M5,N5)","v":21}]
[null,"Apples Green","1.5 kg",19,5,95,null,null,null,null,"Apples Green","1.5 kg",19,5,{"$f":"SUMPRODUCT(M6,N6)","v":95}]
[null,"Oranges","p/kg",9,3,27,null,null,null,null,"Oranges","p/kg",9,3,{"$f":"SUMPRODUCT(M7,N7)","v":27}]
[null,"Sweet Melon","6 each",100,2,200,null,null,null,null,"Sweet Melon","6 each",100,2,{"$f":"SUMPRODUCT(M8,N8)","v":200}]
[null,"Lemon","kg",10.5,10,105,null,null,null,null,"Lemon","kg",10.5,10,{"$f":"SUMPRODUCT(M9,N9)","v":105}]

{"sheet":"home","index":1,"n_rows":9,"n_cols":15,"rows_kept":9,"cut":false,"hidden":false,"merged":[[1,1,1,5],[1,10,1,14]]}
[]
[null,"  Use of Home Tab",null,null,null,null,null,null,null,null,"Try Yourself"]
[]
[null,"Product Name","Pack Size","Unit Price ","Quantity","Price ",null,null,null,null,"Product Name","Pack Size","Unit Price ","Quantity","Price "]
[null,"Banana","p/kg",10.5,2,21,null,null,null,null,"Banana","p/kg",10.5,2,{"$f":"SUMPRODUCT(M5,N5)","v":21}]
[null,"Apples Green","1.5 kg",19,5,95,null,null,null,null,"Apples Green","1.5 kg",19,5,{"$f":"SUMPRODUCT(M6,N6)","v":95}]
[null,"Oranges","p/kg",9,3,27,null,null,null,null,"Oranges","p/kg",9,3,27]
[null,"Sweet Melon","6 each",100,2,200,null,null,null,null,"Sweet Melon","6 each",100,2,200]
[null,"Lemon","kg",10.5,10,105,null,null,null,null,"Lemon","kg",10.5,10,105]

{"sheet":"keyboard_shortcut","index":2,"n_rows":9,"n_cols":15,"rows_kept":9,"cut":false,"hidden":false,"merged":[[1,1,1,5],[1,10,1,14]]}
[]
[null," Using Keyboard Shortcut",null,null,null,null,null,null,null,null,"Try Yourself"]
[]
[null,"Product Name","Pack Size","Unit Price ","Quantity","Price ",null,null,null,null,"Product Name","Pack Size","Unit Price ","Quantity","Price "]
[null,"Banana","p/kg",10.5,2,21,null,null,null,null,"Banana","p/kg",10.5,2,{"$f":"SUMPRODUCT(M5,N5)","v":21}]
[null,"Apples Green","1.5 kg",19,5,95,null,null,null,null,"Apples Green","1.5 kg",19,5,{"$f":"SUMPRODUCT(M6,N6)","v":95}]
[null,"Oranges","p/kg",9,3,27,null,null,null,null,"Oranges","p/kg",9,3,27]
[null,"Sweet Melon","6 each",100,2,200,null,null,null,null,"Sweet Melon","6 each",100,2,200]
[null,"Lemon","kg",10.5,10,105,null,null,null,null,"Lemon","kg",10.5,10,105]

{"sheet":"keyboard_shortcut(2)","index":3,"n_rows":9,"n_cols":15,"rows_kept":9,"cut":false,"hidden":false,"merged":[[1,1,1,5],[1,10,1,14]]}
[]
[null," Using Keyboard Shortcut",null,null,null,null,null,null,null,null,"Try Yourself"]
[]
[null,"Product Name","Pack Size","Unit Price ","Quantity","Price ",null,null,null,null,"Product Name","Pack Size","Unit Price ","Quantity","Price "]
[null,"Banana","p/kg",10.5,2,21,null,null,null,null,"Banana","p/kg",10.5,2,{"$f":"SUMPRODUCT(M5,N5)","v":21}]
[null,"Apples Green","1.5 kg",19,5,95,null,null,null,null,"Apples Green","1.5 kg",19,5,{"$f":"SUMPRODUCT(M6,N6)","v":95}]
[null,"Oranges","p/kg",9,3,27,null,null,null,null,"Oranges","p/kg",9,3,27]
[null,"Sweet Melon","6 each",100,2,200,null,null,null,null,"Sweet Melon","6 each",100,2,200]
[null,"Lemon","kg",10.5,10,105,null,null,null,null,"Lemon","kg",10.5,10,105]

{"sheet":"paste special","index":4,"n_rows":9,"n_cols":15,"rows_kept":9,"cut":false,"hidden":false,"merged":[[1,1,1,5],[1,10,1,14]]}
[]
[null," Using Paste Special",null,null,null,null,null,null,null,null,"Try Yourself"]
[]
[null,"Product Name","Pack Size","Unit Price ","Quantity","Price ",null,null,null,null,"Product Name","Pack Size","Unit Price ","Quantity","Price "]
[null,"Banana","p/kg",10.5,2,21,null,null,null,null,"Banana","p/kg",10.5,2,{"$f":"SUMPRODUCT(M5,N5)","v":21}]
[null,"Apples Green","1.5 kg",19,5,95,null,null,null,null,"Apples Green","1.5 kg",19,5,{"$f":"SUMPRODUCT(M6,N6)","v":95}]
[null,"Oranges","p/kg",9,3,27,null,null,null,null,"Oranges","p/kg",9,3,27]
[null,"Sweet Melon","6 each",100,2,200,null,null,null,null,"Sweet Melon","6 each",100,2,200]
[null,"Lemon","kg",10.5,10,105,null,null,null,null,"Lemon","kg",10.5,10,105]

{"sheet":"mouse trick","index":5,"n_rows":9,"n_cols":15,"rows_kept":9,"cut":false,"hidden":false,"merged":[[1,1,1,5],[1,10,1,14]]}
[]
[null," Using Clever Mouse Trick",null,null,null,null,null,null,null,null,"Try Yourself"]
[]
[null,"Product Name","Pack Size","Unit Price ","Quantity","Price ",null,null,null,null,"Product Name","Pack Size","Unit Price ","Quantity","Price "]
[null,"Banana","p/kg",10.5,2,21,null,null,null,null,"Banana","p/kg",10.5,2,{"$f":"SUMPRODUCT(M5,N5)","v":21}]
[null,"Apples Green","1.5 kg",19,5,95,null,null,null,null,"Apples Green","1.5 kg",19,5,{"$f":"SUMPRODUCT(M6,N6)","v":95}]
[null,"Oranges","p/kg",9,3,27,null,null,null,null,"Oranges","p/kg",9,3,27]
[null,"Sweet Melon","6 each",100,2,200,null,null,null,null,"Sweet Melon","6 each",100,2,200]
[null,"Lemon","kg",10.5,10,105,null,null,null,null,"Lemon","kg",10.5,10,105]

{"sheet":"Sheet 1","index":6,"n_rows":9,"n_cols":15,"rows_kept":9,"cut":false,"hidden":false,"merged":[[1,1,1,5],[1,10,1,14]]}
[]
[null,"Remove Formulas From Multiple Sheets",null,null,null,null,null,null,null,null,"Try Yourself"]
[]
[null,"Product Name","Pack Size","Unit Price ","Quantity","Price ",null,null,null,null,"Product Name","Pack Size","Unit Price ","Quantity","Price "]
[null,"Banana","p/kg",10.5,2,21,null,null,null,null,"Banana","p/kg",10.5,2,{"$f":"SUMPRODUCT(M5,N5)","v":21}]
[null,"Apples Green","1.5 kg",19,5,95,null,null,null,null,"Apples Green","1.5 kg",19,5,{"$f":"SUMPRODUCT(M6,N6)","v":95}]
[null,"Oranges","p/kg",9,3,27,null,null,null,null,"Oranges","p/kg",9,3,27]
[null,"Sweet Melon","6 each",100,2,200,null,null,null,null,"Sweet Melon","6 each",100,2,200]
[null,"Lemon","kg",10.5,10,105,null,null,null,null,"Lemon","kg",10.5,10,105]

{"sheet":"Sheet 2","index":7,"n_rows":9,"n_cols":15,"rows_kept":9,"cut":false,"hidden":false,"merged":[[1,1,1,5],[1,10,1,14]]}
[]
[null,"Remove Formulas From Multiple Sheets",null,null,null,null,null,null,null,null,"Try Yourself"]
[]
[null,"Product Name","Pack Size","Unit Price ","Quantity","Price ",null,null,null,null,"Product Name","Pack Size","Unit Price ","Quantity","Price "]
[null,"Banana","p/kg",10.5,2,21,null,null,null,null,"Banana","p/kg",10.5,2,{"$f":"SUMPRODUCT(M5,N5)","v":21}]
[null,"Apples Green","1.5 kg",19,5,95,null,null,null,null,"Apples Green","1.5 kg",19,5,{"$f":"SUMPRODUCT(M6,N6)","v":95}]
[null,"Oranges","p/kg",9,3,27,null,null,null,null,"Oranges","p/kg",9,3,27]
[null,"Sweet Melon","6 each",100,2,200,null,null,null,null,"Sweet Melon","6 each",100,2,200]
[null,"Lemon","kg",10.5,10,105,null,null,null,null,"Lemon","kg",10.5,10,105]

{"sheet":"Sheet 3","index":8,"n_rows":9,"n_cols":15,"rows_kept":9,"cut":false,"hidden":false,"merged":[[1,1,1,5],[1,10,1,14]]}
[]
[null,"Remove Formulas From Multiple Sheets",null,null,null,null,null,null,null,null,"Try Yourself"]
[]
[null,"Product Name","Pack Size","Unit Price ","Quantity","Price ",null,null,null,null,"Product Name","Pack Size","Unit Price ","Quantity","Price "]
[null,"Banana","p/kg",10.5,2,21,null,null,null,null,"Banana","p/kg",10.5,2,{"$f":"SUMPRODUCT(M5,N5)","v":21}]
[null,"Apples Green","1.5 kg",19,5,95,null,null,null,null,"Apples Green","1.5 kg",19,5,{"$f":"SUMPRODUCT(M6,N6)","v":95}]
[null,"Oranges","p/kg",9,3,27,null,null,null,null,"Oranges","p/kg",9,3,27]
[null,"Sweet Melon","6 each",100,2,200,null,null,null,null,"Sweet Melon","6 each",100,2,200]
[null,"Lemon","kg",10.5,10,105,null,null,null,null,"Lemon","kg",10.5,10,105]

{"sheet":"quick accessbar","index":9,"n_rows":9,"n_cols":15,"rows_kept":9,"cut":false,"hidden":false,"merged":[[1,1,1,5],[1,10,1,14]]}
[]
[null,"Using Quick Access Toolbar",null,null,null,null,null,null,null,null,"Try Yourself"]
[]
[null,"Product Name","Pack Size","Unit Price ","Quantity","Price ",null,null,null,null,"Product Name","Pack Size","Unit Price ","Quantity","Price "]
[null,"Banana","p/kg",10.5,2,21,null,null,null,null,"Banana","p/kg",10.5,2,{"$f":"SUMPRODUCT(M5,N5)","v":21}]
[null,"Apples Green","1.5 kg",19,5,95,null,null,null,null,"Apples Green","1.5 kg",19,5,{"$f":"SUMPRODUCT(M6,N6)","v":95}]
[null,"Oranges","p/kg",9,3,27,null,null,null,null,"Oranges","p/kg",9,3,27]
[null,"Sweet Melon","6 each",100,2,200,null,null,null,null,"Sweet Melon","6 each",100,2,200]
[null,"Lemon","kg",10.5,10,105,null,null,null,null,"Lemon","kg",10.5,10,105]

{"sheet":"VBA","index":10,"n_rows":9,"n_cols":6,"rows_kept":9,"cut":false,"hidden":false,"merged":[[1,1,1,5],[1,10,1,14]]}
[]
[null,"Using VBA"]
[]
[null,"Product Name","Pack Size","Unit Price ","Quantity","Price "]
[null,"Banana","p/kg",10.5,2,21]
[null,"Apples Green","1.5 kg",19,5,95]
[null,"Oranges","p/kg",9,3,27]
[null,"Sweet Melon","6 each",100,2,200]
[null,"Lemon","kg",10.5,10,105]